[Event "Chessity Nationale Pupillendag 2019 - Groep F"]
[Site "Meppel, Netherlands"]
[Date "2019.06.29"]
[Round "1.1"]
[White "Grooten, Tommy"]
[Black "Dijkhuijsen, Thomas"]
[Result "1-0"]
[TimeControl "15 min + 10 sec"]
[WhiteElo "1318"]
[BlackElo "532"]

1. e4 {[%clk 00:15:19]} {[%emt 01:30:25]} e5 {[%clk 00:15:19]} {[%emt
00:00:02]} 2. Nf3 {[%clk 00:15:28]} {[%emt 00:00:01]} f5 {[%clk 00:15:27]}
{[%emt 00:00:02]} 3. Nxe5 {[%clk 00:15:29]} {[%emt 00:00:09]} Bc5 {[%clk
00:15:30]} {[%emt 00:00:07]} 4. d4 {[%clk 00:15:32]} {[%emt 00:00:07]} Bd6
{[%clk 00:15:29]} {[%emt 00:00:11]} 5. Qh5+ {[%clk 00:15:38]} {[%emt 00:00:03]}
g6 {[%clk 00:15:20]} {[%emt 00:00:18]} 6. Nxg6 {[%clk 00:15:46]} {[%emt
00:00:03]} hxg6 {[%clk 00:15:19]} {[%emt 00:00:11]} 7. Qxh8 {[%clk 00:15:54]}
{[%emt 00:00:01]} Kf8 {[%clk 00:15:13]} {[%emt 00:00:17]} 8. e5 {[%clk
00:15:56]} {[%emt 00:00:09]} Be7 {[%clk 00:15:09]} {[%emt 00:00:13]} 9. Bc4
{[%clk 00:16:03]} {[%emt 00:00:02]} d5 {[%clk 00:15:13]} {[%emt 00:00:06]} 10.
exd6 {[%clk 00:16:10]} {[%emt 00:00:03]} Ke8 {[%clk 00:14:57]} {[%emt
00:00:27]} 11. Qxg8+ {[%clk 00:16:16]} {[%emt 00:00:04]} Kd7 {[%clk 00:15:05]}
{[%emt 00:00:02]} 12. Be6+ {[%clk 00:16:17]} {[%emt 00:00:08]} Kxd6 {[%clk
00:15:08]} {[%emt 00:00:07]} 13. Qxd8+ {[%clk 00:16:24]} {[%emt 00:00:04]} Bxd8
{[%clk 00:15:15]} {[%emt 00:00:02]} 14. Bxc8 {[%clk 00:16:32]} {[%emt
00:00:03]} Nc6 {[%clk 00:15:15]} {[%emt 00:00:10]} 15. Bf4+ {[%clk 00:16:40]}
{[%emt 00:00:02]} Kd5 {[%clk 00:15:19]} {[%emt 00:00:06]} 16. Nc3+ {[%clk
00:16:48]} {[%emt 00:00:02]} Kxd4 {[%clk 00:15:23]} {[%emt 00:00:06]} 17.
O-O-O+ {[%clk 00:16:55]} {[%emt 00:00:02]} Kc5 {[%clk 00:15:25]} {[%emt
00:00:08]} 18. Be3+ {[%clk 00:17:02]} {[%emt 00:00:04]} Kb4 {[%clk 00:15:24]}
{[%emt 00:00:11]} 19. a3+ {[%clk 00:17:11]} {[%emt 00:00:01]} Ka5 {[%clk
00:15:31]} {[%emt 00:00:03]} 20. Bxb7 {[%clk 00:17:08]} {[%emt 00:00:13]} Rb8
{[%clk 00:15:31]} {[%emt 00:00:10]} 21. Bxc6 {[%clk 00:17:15]} {[%emt
00:00:02]} Ka6 {[%clk 00:15:27]} {[%emt 00:00:14]} 22. Na4 {[%clk 00:17:10]}
{[%emt 00:00:15]} Ka5 {[%clk 00:15:32]} {[%emt 00:00:05]} 23. Nc5 {[%clk
00:17:17]} {[%emt 00:00:03]} f4 {[%clk 00:15:20]} {[%emt 00:00:22]} 24. Rxd8
{[%clk 00:17:10]} {[%emt 00:00:17]} Rxd8 {[%clk 00:15:27]} {[%emt 00:00:03]} 25.
Nb7+ {[%clk 00:17:17]} {[%emt 00:00:03]} Ka6 {[%clk 00:15:32]} {[%emt
00:00:05]} 26. Bc5 {[%clk 00:17:22]} {[%emt 00:00:05]} Rb8 {[%clk 00:15:13]}
{[%emt 00:00:29]} 27. a4 {[%clk 00:17:13]} {[%emt 00:00:20]} Rxb7 {[%clk
00:15:15]} {[%emt 00:00:07]} 28. b4 {[%clk 00:17:12]} {[%emt 00:00:11]} Rb8
{[%clk 00:15:15]} {[%emt 00:00:09]} 29. Re1 {[%clk 00:17:05]} {[%emt 00:00:17]}
Rd8 {[%clk 00:15:13]} {[%emt 00:00:12]} 30. Re4 {[%clk 00:17:00]} {[%emt
00:00:15]} g5 {[%clk 00:15:06]} {[%emt 00:00:16]} 31. b5+ {[%clk 00:16:39]}
{[%emt 00:00:32]} Ka5 {[%clk 00:15:07]} {[%emt 00:00:08]} 32. Bb4+ {[%clk
00:16:45]} {[%emt 00:00:04]} Kb6 {[%clk 00:15:01]} {[%emt 00:00:16]} 33. a5#
{[%emt 00:00:06]} 1-0

[Event "Chessity Nationale Pupillendag 2019 - Groep F"]
[Site "Meppel, Netherlands"]
[Date "2019.06.29"]
[Round "1.2"]
[White "Bakker, Tim"]
[Black "Sterk, Ralf"]
[Result "0-1"]
[TimeControl "15 min + 10 sec"]
[WhiteElo "512"]
[BlackElo "962"]

1. e4 {[%clk 00:15:17]} {[%emt 00:00:02]} e5 {[%clk 00:15:19]} {[%emt
00:00:01]} 2. Nc3 {[%clk 00:15:21]} {[%emt 00:00:06]} Nc6 {[%clk 00:15:26]}
{[%emt 00:00:03]} 3. d3 {[%emt 00:00:07]} h6 {[%clk 00:15:31]} {[%emt
00:00:02]} 4. Be3 {[%clk 00:15:31]} {[%emt 00:00:06]} Nf6 {[%clk 00:15:37]}
{[%emt 00:00:04]} 5. Nf3 {[%clk 00:15:40]} {[%emt 00:00:02]} Be7 {[%clk
00:15:43]} {[%emt 00:00:04]} 6. g3 {[%clk 00:15:44]} {[%emt 00:00:06]} d6
{[%clk 00:15:51]} {[%emt 00:00:01]} 7. Qd2 {[%clk 00:15:46]} {[%emt 00:00:08]}
Bg4 {[%clk 00:15:57]} {[%emt 00:00:04]} 8. Bg2 {[%clk 00:15:46]} {[%emt
00:00:10]} Qd7 {[%clk 00:16:04]} {[%emt 00:00:04]} 9. b3 {[%clk 00:15:39]}
{[%emt 00:00:16]} d5 {[%clk 00:16:00]} {[%emt 00:00:13]} 10. exd5 {[%clk
00:15:43]} {[%emt 00:00:07]} Nxd5 {[%clk 00:16:03]} {[%emt 00:00:06]} 11. Nxd5
{[%clk 00:15:49]} {[%emt 00:00:04]} Qxd5 {[%clk 00:16:09]} {[%emt 00:00:05]} 12.
Ng1 {[%clk 00:15:29]} {[%emt 00:00:22]} Qxg2 {[%clk 00:15:49]} {[%emt
00:00:37]} 13. f3 {[%clk 00:15:10]} {[%emt 00:00:28]} Bxf3 {[%clk 00:15:36]}
{[%emt 00:00:23]} 14. Nxf3 {[%clk 00:15:12]} {[%emt 00:00:08]} Qxh1+ {[%clk
00:15:29]} {[%emt 00:00:18]} 15. Kf2 {[%clk 00:15:14]} {[%emt 00:00:02]} Qxa1
{[%clk 00:15:36]} {[%emt 00:00:09]} 16. c3 {[%clk 00:15:18]} {[%emt 00:00:06]}
O-O {[%clk 00:15:23]} {[%emt 00:00:22]} 17. d4 {[%clk 00:15:25]} {[%emt
00:00:04]} exd4 {[%clk 00:15:27]} {[%emt 00:00:06]} 18. Nxd4 {[%clk 00:15:32]}
{[%emt 00:00:03]} Nxd4 {[%clk 00:15:35]} {[%emt 00:00:02]} 19. Bxd4 {[%clk
00:15:41]} {[%emt 00:00:01]} Qh1 {[%clk 00:15:41]} {[%emt 00:00:04]} 20. Qe2
{[%clk 00:15:42]} {[%emt 00:00:09]} Qxh2+ {[%clk 00:15:44]} {[%emt 00:00:07]}
21. Ke1 {[%clk 00:15:50]} {[%emt 00:00:02]} Qxe2+ {[%clk 00:15:49]} {[%emt
00:00:05]} 22. Kxe2 {[%clk 00:15:58]} {[%emt 00:00:02]} Rae8 {[%emt 00:00:04]}
23. Kd2 {[%emt 00:00:04]} Bg5+ {[%clk 00:16:03]} {[%emt 00:00:01]} 24. Kc2
{[%clk 00:16:12]} {[%emt 00:00:01]} f5 {[%clk 00:16:11]} {[%emt 00:00:02]} 25.
Bxa7 {[%clk 00:16:17]} {[%emt 00:00:06]} f4 {[%clk 00:16:18]} {[%emt 00:00:03]}
26. gxf4 {[%clk 00:16:26]} Rxf4 {[%clk 00:16:23]} {[%emt 00:00:06]} 27. Bd4
{[%clk 00:16:20]} {[%emt 00:00:16]} Rxd4 {[%clk 00:16:18]} {[%emt 00:00:16]} 28.
cxd4 {[%clk 00:16:29]} {[%emt 00:00:01]} h5 {[%clk 00:16:26]} 29. Kd3 {[%clk
00:16:31]} {[%emt 00:00:08]} h4 {[%clk 00:16:35]} {[%emt 00:00:01]} 30. a4 h3
{[%emt 00:00:17]} 31. b4 {[%clk 00:16:12]} {[%emt 00:00:11]} h2 {[%clk
00:16:42]} {[%emt 00:00:03]} 32. a5 {[%clk 00:16:21]} {[%emt 00:00:01]} h1=Q
{[%emt 00:00:02]} 33. b5 {[%emt 00:00:09]} Qf1+ {[%clk 00:16:26]} {[%emt
00:00:14]} 34. Kc3 {[%clk 00:16:29]} {[%emt 00:00:02]} Qc1+ {[%clk 00:16:33]}
{[%emt 00:00:03]} 35. Kd3 Re3# {[%clk 00:16:33]} 0-1

[Event "Chessity Nationale Pupillendag 2019 - Groep F"]
[Site "Meppel, Netherlands"]
[Date "2019.06.29"]
[Round "1.3"]
[White "Vijver, Jonathan"]
[Black "Denekamp, Elias"]
[Result "1-0"]
[TimeControl "15 min + 10 sec"]
[WhiteElo "948"]
[BlackElo "499"]

1. e4 {[%clk 00:15:17]} {[%emt 00:00:02]} e5 {[%clk 00:15:19]} {[%emt
00:00:02]} 2. Nf3 {[%clk 00:15:26]} Nc6 {[%clk 00:15:28]} {[%emt 00:00:02]} 3.
d4 {[%clk 00:15:35]} {[%emt 00:00:01]} exd4 {[%clk 00:15:25]} {[%emt 00:00:12]}
4. Nxd4 {[%clk 00:15:41]} {[%emt 00:00:04]} Nxd4 {[%clk 00:15:32]} {[%emt
00:00:03]} 5. Qxd4 {[%clk 00:15:50]} {[%emt 00:00:01]} c5 {[%clk 00:15:39]}
{[%emt 00:00:03]} 6. Qd1 {[%clk 00:15:57]} {[%emt 00:00:03]} Nf6 {[%clk
00:15:40]} {[%emt 00:00:10]} 7. Nc3 {[%clk 00:16:05]} {[%emt 00:00:01]} d6
{[%clk 00:15:34]} {[%emt 00:00:16]} 8. Bg5 {[%clk 00:16:12]} {[%emt 00:00:03]}
h6 {[%clk 00:15:33]} {[%emt 00:00:11]} 9. Bxf6 {[%clk 00:16:19]} {[%emt
00:00:03]} Qxf6 {[%clk 00:15:41]} {[%emt 00:00:02]} 10. Nd5 {[%clk 00:16:28]}
{[%emt 00:00:01]} Qd8 {[%clk 00:15:43]} {[%emt 00:00:08]} 11. Bb5+ {[%clk
00:16:35]} {[%emt 00:00:03]} Bd7 {[%clk 00:15:49]} {[%emt 00:00:04]} 12. Bxd7+
{[%clk 00:16:41]} {[%emt 00:00:04]} Qxd7 {[%clk 00:15:56]} {[%emt 00:00:02]} 13.
O-O {[%clk 00:16:48]} {[%emt 00:00:03]} Be7 {[%clk 00:15:36]} {[%emt 00:00:31]}
14. Nxe7 {[%clk 00:16:45]} {[%emt 00:00:14]} Qxe7 {[%clk 00:15:44]} {[%emt
00:00:02]} 15. Re1 {[%clk 00:16:53]} {[%emt 00:00:01]} O-O {[%clk 00:15:42]}
{[%emt 00:00:12]} 16. f4 {[%clk 00:16:52]} {[%emt 00:00:11]} Qh4 {[%clk
00:15:27]} {[%emt 00:00:25]} 17. Qf3 {[%clk 00:16:57]} {[%emt 00:00:05]} Rae8
{[%clk 00:15:16]} {[%emt 00:00:22]} 18. Rad1 {[%clk 00:16:55]} {[%emt
00:00:11]} f5 {[%clk 00:15:16]} {[%emt 00:00:10]} 19. e5 {[%clk 00:17:02]}
{[%emt 00:00:03]} dxe5 {[%clk 00:15:20]} {[%emt 00:00:06]} 20. fxe5 {[%clk
00:17:08]} {[%emt 00:00:04]} Re6 {[%clk 00:14:44]} {[%emt 00:00:44]} 21. Qxb7
{[%clk 00:17:10]} {[%emt 00:00:10]} Rg6 {[%clk 00:14:37]} {[%emt 00:00:18]} 22.
Qd5+ {[%clk 00:17:15]} {[%emt 00:00:04]} Kh7 {[%clk 00:14:37]} {[%emt
00:00:09]} 23. e6 {[%clk 00:17:11]} {[%emt 00:00:14]} Rd8 {[%clk 00:14:44]}
{[%emt 00:00:03]} 24. Qxd8 {[%clk 00:17:16]} {[%emt 00:00:05]} Qg4 {[%clk
00:14:13]} {[%emt 00:00:41]} 25. Qd5 {[%clk 00:17:14]} {[%emt 00:00:09]} f4
{[%clk 00:14:12]} {[%emt 00:00:14]} 26. Rf1 {[%clk 00:16:47]} {[%emt 00:00:37]}
Rxe6 {[%clk 00:14:02]} {[%emt 00:00:20]} 27. h3 {[%emt 00:01:09]} Qg6 {[%clk
00:13:06]} {[%emt 00:00:34]} 28. Qd3 {[%clk 00:16:14]} Re4 {[%clk 00:12:34]}
{[%emt 00:00:57]} 29. Qd6 {[%clk 00:16:06]} Re6 {[%clk 00:12:12]} {[%emt
00:00:52]} 30. Qxf4 {[%clk 00:16:10]} Rf6 {[%clk 00:12:15]} {[%emt 00:00:12]}
31. Qe3 {[%clk 00:16:06]} Rxf1+ {[%clk 00:12:11]} {[%emt 00:00:29]} 32. Rxf1
{[%clk 00:16:13]} Qxc2 {[%clk 00:12:15]} {[%emt 00:00:08]} 33. Qc3 {[%clk
00:16:13]} Qg6 {[%clk 00:11:41]} {[%emt 00:00:54]} 34. Rc1 {[%clk 00:16:17]}
Qa6 {[%clk 00:11:25]} {[%emt 00:00:33]} 35. Qc2+ {[%clk 00:16:23]} g6 {[%clk
00:11:27]} {[%emt 00:00:12]} 36. Qxc5 {[%clk 00:16:27]} Qxa2 {[%clk 00:11:31]}
{[%emt 00:00:11]} 37. Qe7+ {[%clk 00:16:35]} {[%emt 00:00:02]} Kh8 {[%clk
00:11:38]} {[%emt 00:00:04]} 38. Rc8+ {[%clk 00:16:44]} {[%emt 00:00:02]} Qg8
{[%clk 00:11:45]} {[%emt 00:00:03]} 39. Qf6+ {[%clk 00:16:45]} Kh7 {[%clk
00:11:52]} {[%emt 00:00:12]} 40. Rc7+ {[%clk 00:16:54]} Qf7 {[%clk 00:11:47]}
{[%emt 00:00:16]} 41. Rxf7+ {[%clk 00:17:02]} Kg8 {[%clk 00:11:55]} {[%emt
00:00:05]} 1-0

[Event "Chessity Nationale Pupillendag 2019 - Groep F"]
[Site "Meppel, Netherlands"]
[Date "2019.06.29"]
[Round "1.4"]
[White "Van Linde, Jules"]
[Black "Pereira Garza, Cecilia"]
[Result "0-1"]
[TimeControl "15 min + 10 sec"]
[WhiteElo "497"]
[BlackElo "929"]

1. e3 {[%clk 00:15:13]} {[%emt 00:00:05]} d5 {[%clk 00:15:16]} {[%emt
00:00:05]} 2. Qf3 {[%clk 00:15:20]} {[%emt 00:00:03]} Nf6 {[%clk 00:15:17]}
{[%emt 00:00:09]} 3. e4 {[%clk 00:15:26]} {[%emt 00:00:04]} dxe4 {[%clk
00:15:19]} {[%emt 00:00:07]} 4. Qf4 {[%clk 00:15:32]} {[%emt 00:00:05]} Nc6
{[%clk 00:15:22]} {[%emt 00:00:08]} 5. g4 {[%clk 00:15:39]} {[%emt 00:00:02]}
e5 {[%clk 00:15:22]} {[%emt 00:00:10]} 6. Qg3 {[%clk 00:15:35]} {[%emt
00:00:14]} Bxg4 {[%clk 00:15:08]} {[%emt 00:00:24]} 7. h3 {[%clk 00:15:30]}
{[%emt 00:00:12]} Bf5 {[%clk 00:14:59]} {[%emt 00:00:22]} 8. b3 {[%clk
00:15:22]} {[%emt 00:00:18]} Bd6 {[%clk 00:14:46]} {[%emt 00:00:18]} 9. Qxg7
{[%clk 00:15:26]} {[%emt 00:00:12]} Rg8 {[%clk 00:14:37]} {[%emt 00:00:19]} 10.
Qxg8+ {[%clk 00:14:59]} {[%emt 00:00:36]} Nxg8 {[%clk 00:14:44]} {[%emt
00:00:03]} 11. Rh2 {[%clk 00:14:59]} {[%emt 00:00:10]} Qd7 {[%clk 00:14:36]}
{[%emt 00:00:18]} 12. Rg2 {[%clk 00:15:06]} {[%emt 00:00:03]} O-O-O {[%clk
00:14:35]} {[%emt 00:00:12]} 13. Bb2 {[%clk 00:15:01]} {[%emt 00:00:15]} Nf6
{[%clk 00:13:54]} {[%emt 00:00:51]} 14. Bc4 {[%clk 00:14:57]} {[%emt 00:00:13]}
Nh5 {[%clk 00:13:35]} {[%emt 00:00:29]} 15. Nc3 {[%clk 00:14:59]} {[%emt
00:00:08]} Nf4 {[%clk 00:13:13]} {[%emt 00:00:31]} 16. Rg7 {[%clk 00:15:05]}
{[%emt 00:00:04]} Bg6 {[%clk 00:13:10]} {[%emt 00:00:13]} 17. O-O-O {[%clk
00:15:05]} {[%emt 00:00:11]} Rh8 {[%clk 00:12:48]} {[%emt 00:00:32]} 18. Nb5
{[%clk 00:15:02]} {[%emt 00:00:13]} Bf8 {[%clk 00:12:49]} {[%emt 00:00:09]} 19.
Nxa7+ {[%emt 00:00:12]} Nxa7 {[%emt 00:00:05]} 20. Rxg6 {[%emt 00:00:21]} hxg6
{[%emt 00:00:06]} 21. Re1 {[%clk 00:14:17]} {[%emt 00:00:11]} Nxh3 {[%clk
00:12:11]} {[%emt 00:00:49]} 22. Ne2 {[%clk 00:14:13]} {[%emt 00:00:14]} Bh6
{[%clk 00:12:00]} {[%emt 00:00:20]} 23. Rd1 {[%clk 00:14:14]} {[%emt 00:00:10]}
Nxf2 {[%clk 00:12:08]} {[%emt 00:00:03]} 24. Bb5 {[%clk 00:14:16]} {[%emt
00:00:08]} Nxb5 {[%clk 00:12:12]} {[%emt 00:00:05]} 25. Bxe5 {[%clk 00:13:59]}
{[%emt 00:00:39]} Re8 {[%clk 00:12:16]} {[%emt 00:00:13]} 26. Bg3 {[%clk
00:13:58]} {[%emt 00:00:11]} Nxd1 {[%clk 00:12:14]} {[%emt 00:00:12]} 27. Bf4
{[%clk 00:13:52]} {[%emt 00:00:17]} Bxf4 {[%clk 00:12:15]} {[%emt 00:00:10]} 28.
Nxf4 {[%emt 00:00:02]} Rd8 {[%emt 00:00:08]} 29. Kxd1 {[%clk 00:13:23]} {[%emt
00:00:16]} Qxd2# {[%clk 00:12:23]} 0-1

[Event "Chessity Nationale Pupillendag 2019 - Groep F"]
[Site "Meppel, Netherlands"]
[Date "2019.06.29"]
[Round "1.5"]
[White "Verwer, Oscar"]
[Black "Uit Oude Groeneveld, Samue"]
[Result "1-0"]
[TimeControl "15 min + 10 sec"]
[WhiteElo "864"]
[BlackElo "492"]

1. e4 {[%emt 01:30:54]} e5 {[%clk 00:15:18]} {[%emt 00:00:01]} 2. Nf3 {[%clk
00:15:29]} {[%emt 00:00:01]} Nc6 {[%clk 00:15:26]} {[%emt 00:00:03]} 3. d4
{[%clk 00:15:38]} {[%emt 00:00:01]} exd4 {[%clk 00:15:29]} {[%emt 00:00:07]} 4.
Bc4 {[%clk 00:15:46]} {[%emt 00:00:01]} d5 {[%clk 00:15:27]} {[%emt 00:00:12]}
5. Bxd5 {[%clk 00:15:42]} {[%emt 00:00:14]} Nf6 {[%clk 00:15:18]} {[%emt
00:00:19]} 6. Bxc6+ {[%clk 00:15:32]} {[%emt 00:00:20]} bxc6 {[%clk 00:15:21]}
{[%emt 00:00:06]} 7. Nxd4 {[%clk 00:15:35]} {[%emt 00:00:07]} Bc5 {[%clk
00:15:04]} {[%emt 00:00:28]} 8. Be3 {[%clk 00:15:30]} {[%emt 00:00:15]} Nxe4
{[%clk 00:15:09]} {[%emt 00:00:05]} 9. O-O {[%clk 00:15:14]} {[%emt 00:00:26]}
O-O {[%clk 00:15:17]} {[%emt 00:00:02]} 10. Nxc6 {[%clk 00:15:14]} {[%emt
00:00:11]} Qxd1 {[%clk 00:15:21]} {[%emt 00:00:06]} 11. Rxd1 {[%clk 00:15:20]}
{[%emt 00:00:03]} Bxe3 {[%clk 00:15:21]} {[%emt 00:00:11]} 12. fxe3 {[%clk
00:15:29]} {[%emt 00:00:01]} Bf5 {[%clk 00:15:18]} {[%emt 00:00:13]} 13. Ne7+
{[%clk 00:15:35]} {[%emt 00:00:04]} Kh8 {[%clk 00:15:18]} {[%emt 00:00:10]} 14.
Nxf5 {[%clk 00:15:41]} {[%emt 00:00:03]} g6 {[%clk 00:15:20]} {[%emt 00:00:09]}
15. Nd4 {[%clk 00:15:33]} {[%emt 00:00:18]} Rad8 {[%clk 00:15:25]} {[%emt
00:00:05]} 16. Nc3 {[%clk 00:15:39]} {[%emt 00:00:04]} Nxc3 {[%clk 00:15:20]}
{[%emt 00:00:15]} 17. bxc3 {[%clk 00:15:48]} {[%emt 00:00:01]} Rfe8 {[%clk
00:15:29]} {[%emt 00:00:02]} 18. Rd3 {[%clk 00:15:33]} {[%emt 00:00:24]} c5
{[%clk 00:15:27]} {[%emt 00:00:12]} 19. Nc6 {[%clk 00:15:34]} {[%emt 00:00:09]}
Rxd3 {[%clk 00:15:23]} {[%emt 00:00:13]} 20. cxd3 {[%clk 00:15:40]} {[%emt
00:00:05]} Rxe3 {[%clk 00:15:30]} {[%emt 00:00:03]} 21. Rd1 {[%clk 00:15:32]}
{[%emt 00:00:18]} Re2 {[%clk 00:15:29]} {[%emt 00:00:08]} 22. Nxa7 {[%clk
00:15:27]} {[%emt 00:00:18]} Rxa2 {[%clk 00:15:35]} {[%emt 00:00:04]} 23. Nb5
{[%clk 00:15:34]} {[%emt 00:00:03]} Rb2 {[%clk 00:15:28]} {[%emt 00:00:08]} 24.
c4 {[%clk 00:15:41]} {[%emt 00:00:12]} Ra2 {[%clk 00:15:07]} {[%emt 00:00:30]}
25. d4 {[%clk 00:15:39]} {[%emt 00:00:13]} Rc2 {[%clk 00:15:10]} {[%emt
00:00:06]} 26. dxc5 {[%clk 00:15:41]} {[%emt 00:00:09]} Rxc4 {[%clk 00:15:18]}
{[%emt 00:00:02]} 27. Rd5 {[%clk 00:15:16]} {[%emt 00:00:34]} Rc1+ {[%clk
00:15:21]} {[%emt 00:00:08]} 28. Kf2 {[%clk 00:15:22]} {[%emt 00:00:02]} Rc2+
{[%clk 00:15:30]} 29. Kf3 {[%clk 00:15:29]} {[%emt 00:00:06]} Rc3+ {[%clk
00:15:36]} {[%emt 00:00:04]} 30. Nxc3 {[%clk 00:15:38]} {[%emt 00:00:02]} f5
{[%clk 00:15:40]} {[%emt 00:00:06]} 31. c6 {[%clk 00:15:46]} {[%emt 00:00:02]}
g5 {[%clk 00:15:45]} {[%emt 00:00:05]} 32. Rxf5 {[%clk 00:15:52]} {[%emt
00:00:04]} Kg7 {[%clk 00:15:51]} {[%emt 00:00:03]} 33. c7 {[%clk 00:15:55]}
{[%emt 00:00:07]} Kg6 {[%clk 00:16:00]} {[%emt 00:00:01]} 34. c8=Q {[%clk
00:16:01]} {[%emt 00:00:04]} Kh5 {[%clk 00:16:05]} {[%emt 00:00:05]} 35. Qe8+
{[%clk 00:16:04]} {[%emt 00:00:07]} Kh6 {[%clk 00:15:50]} {[%emt 00:00:25]} 36.
Qf8+ {[%clk 00:16:04]} {[%emt 00:00:11]} Kh5 {[%clk 00:15:58]} {[%emt
00:00:03]} 37. g4+ {[%clk 00:16:08]} {[%emt 00:00:05]} Kh4 {[%clk 00:15:57]}
{[%emt 00:00:11]} 38. Qh6+ {[%clk 00:16:15]} {[%emt 00:00:02]} 1-0

[Event "Chessity Nationale Pupillendag 2019 - Groep F"]
[Site "Meppel, Netherlands"]
[Date "2019.06.29"]
[Round "1.6"]
[White "Kurt, Sascha"]
[Black "Aubel, Daan"]
[Result "0-1"]
[TimeControl "15 min + 10 sec"]
[WhiteElo "789"]
[BlackElo "859"]

1. e4 {[%clk 00:15:19]} c5 {[%clk 00:15:19]} {[%emt 00:00:02]} 2. Bc4 {[%clk
00:15:26]} {[%emt 00:00:03]} e6 {[%clk 00:15:26]} {[%emt 00:00:03]} 3. Nc3
{[%clk 00:15:34]} {[%emt 00:00:02]} a6 {[%clk 00:15:34]} {[%emt 00:00:03]} 4.
Nf3 {[%clk 00:15:36]} {[%emt 00:00:07]} b5 {[%clk 00:15:42]} {[%emt 00:00:02]}
5. Bd3 {[%clk 00:15:39]} {[%emt 00:00:05]} Bb7 {[%clk 00:15:50]} {[%emt
00:00:04]} 6. O-O {[%clk 00:15:44]} {[%emt 00:00:05]} Be7 {[%clk 00:15:50]}
{[%emt 00:00:10]} 7. Qe1 {[%clk 00:15:47]} {[%emt 00:00:07]} Nf6 {[%clk
00:15:50]} {[%emt 00:00:10]} 8. Rb1 {[%clk 00:15:46]} {[%emt 00:00:11]} d6
{[%clk 00:15:55]} {[%emt 00:00:05]} 9. h3 {[%clk 00:15:53]} {[%emt 00:00:03]}
O-O {[%clk 00:15:53]} {[%emt 00:00:12]} 10. Ng5 {[%clk 00:15:52]} {[%emt
00:00:07]} h6 {[%clk 00:15:54]} {[%emt 00:00:13]} 11. Nf3 {[%clk 00:15:57]}
{[%emt 00:00:05]} b4 {[%clk 00:15:40]} {[%emt 00:00:25]} 12. Na4 {[%clk
00:16:03]} {[%emt 00:00:03]} Bc6 {[%clk 00:15:16]} {[%emt 00:00:34]} 13. b3
{[%clk 00:16:05]} {[%emt 00:00:08]} Qa5 {[%clk 00:15:11]} {[%emt 00:00:14]} 14.
Qe3 {[%clk 00:15:46]} {[%emt 00:00:29]} Bxa4 {[%clk 00:15:08]} {[%emt
00:00:13]} 15. bxa4 {[%clk 00:15:53]} {[%emt 00:00:03]} Qxa4 {[%clk 00:15:17]}
{[%emt 00:00:02]} 16. Ra1 {[%clk 00:15:56]} {[%emt 00:00:05]} Nc6 {[%clk
00:15:02]} {[%emt 00:00:27]} 17. Re1 {[%clk 00:15:45]} {[%emt 00:00:19]} Na5
{[%clk 00:15:03]} {[%emt 00:00:10]} 18. Nh4 {[%clk 00:15:40]} {[%emt 00:00:13]}
Rfb8 {[%clk 00:14:48]} {[%emt 00:00:28]} 19. Qe2 {[%clk 00:15:33]} {[%emt
00:00:12]} Rb6 {[%clk 00:14:37]} {[%emt 00:00:26]} 20. e5 {[%clk 00:15:24]}
{[%emt 00:00:18]} Nd5 {[%clk 00:14:34]} {[%emt 00:00:13]} 21. Be4 {[%clk
00:15:24]} {[%emt 00:00:07]} Rd8 {[%clk 00:14:00]} {[%emt 00:00:46]} 22. c4
{[%clk 00:15:19]} {[%emt 00:00:16]} Nf4 {[%clk 00:13:16]} {[%emt 00:00:56]} 23.
Qe3 {[%clk 00:15:10]} {[%emt 00:00:16]} Bxh4 {[%clk 00:13:23]} {[%emt
00:00:05]} 24. Qxf4 {[%clk 00:15:12]} {[%emt 00:00:08]} Bg5 {[%clk 00:13:32]}
{[%emt 00:00:02]} 25. Qg4 {[%clk 00:15:06]} {[%emt 00:00:09]} Nxc4 {[%clk
00:13:39]} {[%emt 00:00:10]} 26. exd6 {[%clk 00:14:54]} {[%emt 00:00:21]} Rbxd6
{[%clk 00:13:40]} {[%emt 00:00:09]} 27. Qg3 {[%clk 00:14:41]} {[%emt 00:00:16]}
Bf6 {[%clk 00:13:08]} {[%emt 00:00:49]} 28. Rb1 {[%clk 00:14:45]} {[%emt
00:00:03]} Qxa2 {[%clk 00:12:49]} {[%emt 00:00:33]} 29. Bb2 {[%clk 00:14:38]}
{[%emt 00:00:13]} Nxb2 {[%clk 00:12:25]} {[%emt 00:00:37]} 30. Qg4 {[%clk
00:14:25]} {[%emt 00:00:14]} Nd3 {[%clk 00:12:27]} {[%emt 00:00:17]} 31. Bxd3
{[%clk 00:14:15]} {[%emt 00:00:19]} Rxd3 {[%clk 00:12:35]} {[%emt 00:00:02]} 32.
Rbd1 {[%clk 00:14:04]} {[%emt 00:00:21]} Rxd2 {[%clk 00:12:40]} {[%emt
00:00:05]} 33. Rf1 {[%clk 00:13:48]} {[%emt 00:00:25]} Rxd1 {[%clk 00:12:45]}
{[%emt 00:00:06]} 34. Rxd1 {[%clk 00:13:56]} {[%emt 00:00:02]} Rxd1+ {[%clk
00:12:54]} {[%emt 00:00:01]} 35. Qxd1 {[%clk 00:14:02]} {[%emt 00:00:04]} Qa1
{[%clk 00:13:03]} {[%emt 00:00:01]} 36. Qf1 {[%clk 00:14:05]} {[%emt 00:00:06]}
Qxf1+ {[%clk 00:13:09]} {[%emt 00:00:05]} 37. Kxf1 {[%clk 00:14:14]} {[%emt
00:00:02]} b3 {[%clk 00:13:17]} {[%emt 00:00:02]} 38. g4 {[%clk 00:14:20]}
{[%emt 00:00:03]} b2 {[%clk 00:13:26]} {[%emt 00:00:02]} 39. Ke2 {[%clk
00:14:29]} {[%emt 00:00:01]} b1=Q {[%clk 00:13:32]} {[%emt 00:00:03]} 40. g5
{[%clk 00:14:34]} {[%emt 00:00:06]} Qc2+ {[%clk 00:13:40]} {[%emt 00:00:03]} 41.
Kf3 {[%clk 00:14:41]} {[%emt 00:00:02]} Qd3+ {[%clk 00:13:46]} {[%emt
00:00:04]} 42. Kg2 {[%clk 00:14:45]} {[%emt 00:00:04]} Bxg5 {[%clk 00:13:54]}
{[%emt 00:00:04]} 43. h4 {[%clk 00:14:50]} {[%emt 00:00:05]} Bxh4 {[%clk
00:13:58]} {[%emt 00:00:06]} 44. f3 {[%emt 00:00:05]} Qe2+ {[%emt 00:00:03]} 45.
Kh3 {[%clk 00:14:41]} {[%emt 00:00:07]} Qxf3+ {[%clk 00:14:04]} {[%emt
00:00:08]} 46. Kxh4 {[%clk 00:14:48]} {[%emt 00:00:03]} Qg2 {[%clk 00:14:11]}
{[%emt 00:00:02]} 47. Kh5 {[%clk 00:14:52]} {[%emt 00:00:07]} Qg5# {[%emt
00:00:02]} 0-1